Cogmind - Beta 14 @@@ ROGUE MODE // 2024.11.23 @ 20:02:56 Player: skye Result: Self-destructed Performance ------------- Evolutions (1) 500 Regions Visited (3) 600 Robots Destroyed (26) 130 Value Destroyed (704) 704 Prototype IDs (0) 0 Alien Tech Used (0) 0 Bonus (25) 25 TOTAL SCORE: 1959 Bonus ------- Follower Combat Kills 25 Cogmind --------- Core Integrity 135/400 Matter 300/300 Energy 100/100 System Corruption 2% Temperature Cool (0) Movement Core (350) Ox6 Location -9/Materials Parts ------- > --- POWER (1) -------- (None) > --- PROPULSION (3) --- (None) > --- UTILITY (3) ------ Large Storage Unit > --- WEAPON (2) ------- (None) > --- INVENTORY (15) --- Ion Engine Light Ion Engine Light Ion Engine High-capacity Matter Pod (200) Improved Terrain Scanner Terrain Scan Processor Plasma Cutter Peak State ------------ > --- POWER ------------ Light Ion Engine > --- PROPULSION ------- Improved Treads Improved Treads > --- UTILITY ---------- Small Storage Unit Shield Generator > --- WEAPON ----------- Light EM Pulse Cannon Light Assault Rifle > --- INVENTORY -------- Ion Engine Light Ion Engine Light Ion Engine Wheel Small Matter Pod Improved Terrain Scanner Plasma Cutter Mining Claw [Rating: 12] Favorites ----------- Power Light Ion Engine Engine Light Ion Engine Propulsion Improved Treads Treads Improved Treads Leg Aluminum Leg Wheel Wheel Utility Shield Generator Device Shield Generator Storage Large Storage Unit Weapon Light Assault Rifle Energy Gun Medium Laser Energy Cannon Light EM Pulse Cannon Ballistic Gun Light Assault Rifle Slashing Weapon Mining Claw Build | -11 -10 -10 -9 ------- Run | Yrd Mat Min Mat Slots Evolved 2 | . . . 2 Power . | . . . . Propulsion 1 | . . . 1 Utility 1 | . . . 1 Weapon . | . . . . Parts Attached 14 | 2 8 . 4 Power . | . . . . Engine . | . . . . Core . | . . . . Reactor . | . . . . Propulsion 8 | 2 4 . 2 Treads 6 | 2 4 . . Leg 1 | . . . 1 Wheel 1 | . . . 1 Hover . | . . . . Flight . | . . . . Utility 3 | . 2 . 1 Device 2 | . 1 . 1 Storage 1 | . 1 . . Processor . | . . . . Hackware . | . . . . Protection . | . . . . Artifact . | . . . . Weapon 3 | . 2 . 1 Energy Gun . | . . . . Energy Cannon 1 | . 1 . . Ballistic Gun 1 | . 1 . . Ballistic Cannon . | . . . . Launcher . | . . . . Special Weapon . | . . . . Impact Weapon . | . . . . Slashing Weapon 1 | . . . 1 Piercing Weapon . | . . . . Special Melee Weapon . | . . . . Unidentified Prototypes . | . . . . Parts Lost 12 | . 4 . 8 Power 1 | . . . 1 Propulsion 5 | . 2 . 3 Utility 2 | . . . 2 Weapon 4 | . 2 . 2 Highest Loss Streak 6 | . 2 . 6 To Critical Strikes . | . . . . Average Slot Usage (%) 83 | . 90 85 59 Engine 12 | . 14 14 5 Treads 25 | . 28 28 11 Wheel 1 | . . . 6 Device 11 | . 10 14 11 Storage 13 | . 14 14 11 Energy Gun 1 | . 2 . . Energy Cannon 3 | . 6 . . Ballistic Gun 12 | . 14 14 5 Peak Build Rating 12 | 7 12 10 12 Average Rating 9 | 6 10 10 7 On Entrance 8 | 6 7 10 10 Naked Turns . | . . . . Heaviest Build 27 | 11 26 26 27 Greatest Support 46 | 40 46 46 46 Greatest Overweight (x) 7 | . . . 7 Average Overweight (x) . | . . . . Largest Inventory Capacity 15 | 8 15 15 15 Average Capacity 11 | 8 9 15 15 Most Carried 9 | 8 8 9 9 Average Carried 7 | 7 7 8 7 Final Capacity 15 | 8 15 15 15 Final Carried 9 | 8 8 9 7 Class Distribution -------------------- 100% | Mutant Dominant Class ---------------- Mutant | -10/Materials Mutant | -10/Mines Mutant | -9/Materials Resources | -11 -10 -10 -9 ----------- Run | Yrd Mat Min Mat Matter Collected 604 | 220 252 22 110 Remotely . | . . . . Salvage Created 879 | 100 510 22 247 Parts 48 | 4 26 4 14 Haulers Intercepted . | . . . . Recyclers Shooed 1 | . 1 . . Parts Field Recycled . | . . . . Retrieved Matter . | . . . . Parts Self-Destructed . | . . . . Prevented . | . . . . Kills | -11 -10 -10 -9 ------- Run | Yrd Mat Min Mat Combat Hostiles Destroyed 21 | . 13 2 6 Melee 5 | . . . 5 Guns 9 | . 6 2 1 Cannons 7 | . 7 . . Classes Destroyed 7 | 2 4 . 1 Tunneler 1 | 1 . . . Recycler 1 | 1 . . . Operator 2 | . 2 . . Watcher 1 | . 1 . . Swarmer 5 | . 3 2 . Grunt 15 | . 10 . 5 Duelist 1 | . . . 1 Best Kill Streak 5 | 1 5 2 3 Combat Bots Only 5 | . 5 2 3 Max Kills in Single Turn 1 | 1 1 1 1 Gunslinging . | . . . . Exploded . | . . . . Melee 1 | . . . 1 Uniques/NPCs Destroyed . | . . . . Combat | -11 -10 -10 -9 -------- Run | Yrd Mat Min Mat Hostile Shots Fired 197 | . 113 24 60 Missed 51 | . 27 8 16 Damage Taken 1587 | . 908 86 593 Core 507 | . 219 23 265 Absorbed by Shields 117 | . 51 37 29 Core Remaining (%) 51 | 100 . 3 . Volleys Fired 97 | 9 66 13 9 Largest 2 | 2 2 1 1 Hottest 90 | 90 76 20 20 Shots Fired 145 | 18 105 13 9 Gun 127 | 18 87 13 9 Cannon 18 | . 18 . . Launcher . | . . . . Special . | . . . . Kinetic 88 | . 66 13 9 Thermal 39 | 18 21 . . Explosive . | . . . . Electromagnetic 18 | . 18 . . Robot Hit Streak 7 | 4 7 1 4 Robot Miss Streak 6 | 2 3 6 3 Penetration Max . | . . . . Secondary Targets . | . . . . Shots Hit Robots 100 | 11 62 2 25 Core Hits 43 | 3 29 2 9 Critical Kills 2 | . 2 . . Critical Parts Destroyed . | . . . . Critical Strikes 3 | . 3 . . Burn 1 | . 1 . . Destroy 2 | . 2 . . Melee Attacks 27 | . . . 27 Impact . | . . . . Slashing 27 | . . . 27 Piercing . | . . . . Sneak Attacks 1 | . . . 1 Combat Hostiles . | . . . . Follow-up Attacks . | . . . . Damage Inflicted 1418 | 129 793 17 479 Guns 704 | 129 514 17 44 Cannons 278 | . 278 . . Explosions . | . . . . Melee 435 | . . . 435 Ramming 1 | . 1 . . Kinetic 372 | . 311 17 44 Thermal 332 | 129 203 . . Explosive . | . . . . Electromagnetic 278 | . 278 . . Impact . | . . . . Slashing 435 | . . . 435 Piercing . | . . . . Highest Corruption 2 | . . . 2 Average Corruption 2 | . . . 2 Corruption Purged . | . . . . Corruption Blocked . | . . . . Overload Shots . | . . . . Overflow Damage 3 | . . . 3 Projectiles . | . . . . Explosions . | . . . . Melee 3 | . . . 3 Knockbacks . | . . . . Impact . | . . . . Kinetic . | . . . . Secondary . | . . . . Self-Inflicted Damage . | . . . . Shots . | . . . . Rammed 1 | . 1 . . Targets Rammed 1 | . 1 . . Kicked . | . . . . Crushed . | . . . . Highest Temperature 325 | 200 325 . 1 Average Temperature 92 | 82 95 . 1 Received Heat Transfer 627 | . 413 . 214 Effects 2 | . 2 . . Energy Bleed 2 | . 2 . . Siege Activations . | . . . . Robots Corrupted . | . . . . Combat Hostiles . | . . . . Parts Fried 1 | . 1 . . Impact Corruptions . | . . . . Robots Melted . | . . . . Combat Hostiles . | . . . . Parts Melted 2 | 2 . . . Heat Transferred 1025 | 359 666 . . Parts Sabotaged . | . . . . Parts Stolen . | . . . . Parts Stripped . | . . . . Power Chain Reactions . | . . . . Alert | -11 -10 -10 -9 ------- Run | Yrd Mat Min Mat Peak Influence 265 | 10 265 93 110 Initial 43 | . 6 43 . Average 85 | 6 124 46 39 Maximum Alert Level 1 | . 1 . . Low Security (%) 87 | 100 76 100 100 Level 1 12 | . 23 . . Level 2 . | . . . . Level 3 . | . . . . Level 4 . | . . . . Level 5 . | . . . . High Security . | . . . . Max Security . | . . . . Squads Dispatched 5 | . 3 . 2 Investigation 2 | . 1 . 1 Extermination . | . . . . Reinforcement 3 | . 2 . 1 Assault . | . . . . Garrison . | . . . . Intercept . | . . . . Searches Triggered . | . . . . Construction Impeded . | . . . . Haulers Reinforced . | . . . . Active Scanning Responses . | . . . . Cargo Convoy Interrupts . | . . . . Stealth | -11 -10 -10 -9 --------- Run | Yrd Mat Min Mat Distress Signals 3 | . 1 . 2 Communications Jammed . | . . . . Distress Signals . | . . . . Times Spotted 51 | . 35 3 13 Peak Tracking Total 6 | . 6 3 5 Tactical Retreats 5 | . 2 . 3 Traps | -11 -10 -10 -9 ------- Run | Yrd Mat Min Mat Traps Triggered 1 | . 1 . . Indirectly . | . . . . Trap Hack Attempts . | . . . . Triggered . | . . . . Disarmed . | . . . . Reprogrammed . | . . . . Reused 1 | . . . 1 Traps Extracted . | . . . . Installed 1 | . . . 1 Triggered 1 | . . . 1 Most Traps Carried 1 | . . 1 1 Machines | -11 -10 -10 -9 ---------- Run | Yrd Mat Min Mat Machines Disabled 1 | . 1 . . Max in Single Turn 1 | . 1 . . Machines Repaired . | . . . . Machines Dismantled . | . . . . Machines Sabotaged . | . . . . Overloaded Fab Kills . | . . . . Hacking | -11 -10 -10 -9 --------- Run | Yrd Mat Min Mat Machines Accessed 6 | . 4 . 2 Terminals 4 | . 2 . 2 Fabricators . | . . . . Repair Stations 1 | . 1 . . Recycling Units 1 | . 1 . . Scanalyzers . | . . . . Garrison Access . | . . . . Total Hacks 18 | . 13 . 5 Successful 9 | . 8 . 1 Failed 9 | . 5 . 4 Catastrophic . | . . . . Database Lockouts . | . . . . Manual 12 | . 7 . 5 Terminals 13 | . 8 . 5 Fabricators . | . . . . Repair Stations 3 | . 3 . . Recycling Units 2 | . 2 . . Scanalyzers . | . . . . Garrison Access . | . . . . Terminal Hacks 3 | . 3 . . Record 1 | . 1 . . Part Schematic 1 | . 1 . . Terminal Index 1 | . 1 . . Fabricator Hacks . | . . . . Repair Station Hacks 1 | . 1 . . Scan Component 1 | . 1 . . Recycling Unit Hacks 1 | . 1 . . Report Inventory 1 | . 1 . . Scanalyzer . | . . . . Garrison Access Hacks . | . . . . Unauthorized Hacks 4 | . 3 . 1 Terminals 4 | . 3 . 1 Assimilate 1 | . 1 . . Botnet 3 | . 2 . 1 Fabricators . | . . . . Repair Stations . | . . . . Recycling Units . | . . . . Scanalyzers . | . . . . Garrison Access . | . . . . Data Cores Recovered . | . . . . Used . | . . . . Hacking Detections 6 | . 4 . 2 Full Trace Events 3 | . 2 . 1 Feedback Events . | . . . . Feedback Blocked . | . . . . Robot Schematics Acquired . | . . . . Robots Built . | . . . . Authchips . | . . . . Time . | . . . . Total Robot Build Rating . | . . . . Part Schematics Acquired 1 | . 1 . . Parts Built . | . . . . Authchips . | . . . . Time . | . . . . Total Part Build Rating . | . . . . Parts Repaired . | . . . . Time . | . . . . Parts Recycled . | . . . . Recycled Matter . | . . . . Retrieved Matter . | . . . . Retrieved Components . | . . . . Parts Scanalyzed . | . . . . Part Schematics Acquired . | . . . . Parts Damaged . | . . . . Bothacking | -11 -10 -10 -9 ------------ Run | Yrd Mat Min Mat Used RIF Installer . | . . . . Robots Hacked . | . . . . Non-combat . | . . . . Combat . | . . . . Robot Hacks Applied . | . . . . Relay Couplers Released . | . . . . Fabnet Peak Effective % . | . . . . Robots Rewired . | . . . . Allies Hacked . | . . . . Hacks Repelled . | . . . . Allies | -11 -10 -10 -9 -------- Run | Yrd Mat Min Mat Total Allies 3 | . . 3 . Largest Group 3 | . . 3 3 Highest-Rated Group 40 | . . 40 40 Highest-Rated Ally 16 | . . 16 16 Total Orders . | . . . . Ally Attacks 14 | . . . 14 Total Damage 127 | . . . 127 Kills 1 | . . . 1 Allies Corrupted . | . . . . Allies Melted . | . . . . Intel | -11 -10 -10 -9 ------- Run | Yrd Mat Min Mat Robot Analysis Total . | . . . . Derelict Logs Recovered 2 | . . 2 . Drone Launches . | . . . . Drone Recoveries . | . . . . Exploration | -11 -10 -10 -9 ------------- Run | Yrd Mat Min Mat Turns Passed 2102 | 70 1127 585 320 Spaces Moved 1014 | 25 531 350 108 Core 8 | . . . 8 Treads 984 | 22 531 350 81 Legs 18 | 3 . . 15 Wheels 4 | . . . 4 Hover . | . . . . Flight . | . . . . Fastest Speed 110 | 120 160 160 110 Average Speed 162 | 155 160 160 188 Slowest Speed 400 | 160 160 160 400 Overloaded Moves . | . . . . Propulsion Burnouts . | . . . . Robots Hopped . | . . . . Cave-ins Triggered . | . . . . Exploration Rate (%) 35 | 4 55 70 13 Regions Visited 3 Branch Regions 1 Pre-discovered Areas 1 | . . 1 . Known Exits Taken . | . . . . Unknown Exits Taken 3 | 1 1 1 . Scrap Searched . | . . . . Spaces Dug . | . . . . Terrain Destroyed . | . . . . Melee . | . . . . Projectile . | . . . . AOE . | . . . . Terrain Rammed . | . . . . Walls Destroyed . | . . . . Machines Disabled . | . . . . Actions | -11 -10 -10 -9 --------- Run | Yrd Mat Min Mat Total 1289 | 37 724 365 163 Wait 111 | . 98 2 11 Move 1011 | 24 530 349 108 Hop . | . . . . Pick Up 16 | 2 11 1 2 Fast Attach 1 | . . . 1 Attach 7 | . 4 . 3 Detach . | . . . . Swap 6 | 2 4 . . Drop 11 | . 10 . 1 Fire 97 | 9 66 13 9 Melee 27 | . . . 27 Ram . | . . . . Kick . | . . . . Crush 1 | . 1 . . Escape Stasis . | . . . . Rewire . | . . . . Trap 1 | . . . 1 Miscellaneous . | . . . . Route ------- -11/Scrapyard -10/Materials (discovered 2 exits: *Mat / [*Min]) -10/Mines (discovered 2 exits: *Mat / Sub) -9/Materials History --------- Turn | Location | Event 1 | -11/Scrapyard | Discovered new exit (range 3) 71 | -11/Scrapyard | Entered Materials 272 | -10/Materials | Core integrity fell below 50% 330 | -10/Materials | Build established: Mutant 569 | -10/Materials | Discovered new exit (range 9) 727 | -10/Materials | Discovered new exit (range 16) 753 | -10/Materials | Core integrity fell below 20% 1198 | -10/Materials | Entered Mines 1199 | -10/Mines | Learned location of Storage (-8) 1212 | -10/Mines | Identified exit to Subcaves 1213 | -10/Mines | Learned Materials trap positions 1425 | -10/Mines | Assisted by bots powering up and referring to "LRC-V3" 1489 | -10/Mines | Found a hidden stash of uninstalled traps 1770 | -10/Mines | Discovered new exit (range 8) 1783 | -10/Mines | Entered Materials 1783 | -9/Materials | Accompanied by 3 allies 1783 | -9/Materials | Evolved 2 slots: Propulsion x1, Utility x1 1784 | -9/Materials | Loaded intel: 29 trap records 1955 | -9/Materials | Lost 3 allies 2015 | -9/Materials | Lost 6 parts (1p2n2u1w) 2071 | -9/Materials | Core integrity fell below 50% 2103 | -9/Materials | Self-destructed Last Messages --------------- 02009_ Acquired 41 matter. 02014_ K-01 Serf collects debris. 02027_ K-01 Serf cleans the Atomic Centrifuge. 02034_ G-34 Mercenary destroyed. 02035_ K-01 Serf collects debris. 02039_ R-06 Scavenger collects Aluminum Leg. 02040_ R-06 Scavenger collects Sml. Laser. 02045_ Sneak attack on A-02 Transporter. 02045_ A-02 Transporter sends out distress signal. 02077_ Aluminum Leg destroyed. 02078_ G-34 Mercenary destroyed. 02084_ R-06 Scavenger collects Heat Sink. 02085_ R-06 Scavenger collects Aluminum Leg. 02088_ R-06 Scavenger collects Ion Engine. 02090_ R-06 Scavenger collects Sml. Laser. 02093_ Mining Claw destroyed. 02093_ System corrupted by crushing effect (+2). 02100_ K-01 Serf collects debris. Map ----- +----------------------------------------------------+ | ?????????????????????????????????????????????????? | | ?????????????????????????????????????????????????? | | ?????????????????????????????????????????????????? | | ??????????????????????????????????^??????????????? | | ???????????????????????????????????^?????????????? | | ?????????????????????????????????????????????????? | | ????????????????????????????????^^???????????????? | | ?????????????????????????????????????????????????? | | ????????????????????????????????^????????????????? | | ?????????????????????????????????^???????????????? | | ?????????????????????????????????????????????????? | | ?????????????????????????????????????????????????? | | ?????????????????????????????????????????????????? | | ?????????????????????????????????????????????????? | | ????????????????????????? ???????????????????????? | | ????????????????????????? ???????????????????????? | | ????????????????????????? ???????????????????????? | | ????????????????????????? ???????????????????????? | | ????????????????#???????? ???????????????????????? | | ????????????????# ??????? ???????????????????????? | | ????????????????# #######+##??????????? ???????? | | ????????????????# #???????????"""???????? | | ????????????????# r +???????????"""???????? | | ???????????###### #???????????"""???????? | | ?????????? #??????????? % ???????? | | ?????????? @b#???????????#/#????#### | | ?????????? k #???????????#"#???? | | ?????????? #????######## #???? | | ?????????? r ###### # #???# | | ???????????#####a##### % +%""" # #???# # | | ?????????????????????# ########## """ # #???# # | | ?????????????????????# ?????????# """ / #???# # | | ?????????????????????#??????????#% # #???# # | | ????????????????????????????????# % # ##### # | | ????????????????????????????????######## # | | ????????????????????????????????????#### # | | ????????????????????????????????????# ^ # | | ????????????????????????????????????# # | | ????????????????????????????????????+ ^T # | | ????????????????????????????????????# ^ # | | ????????????????????????????????????# # | | ????????????????????????????????????## ^""" ^ # | | ?????????????????????????????????????# """" # | | ?????????????????????????????????????# """ # | | ?????????????????????????????????????# ^""" # | | ?????????????????????????????????????# """ # | | ????????????????????????????#######??# | | ????????????????????????????# ?# | | ????????????????????????????# ?# | | ????????????????????????????# # #####T### | +----------------------------------------------------+ Best States ------------- Heat Dissipation 28 Energy Generation 10 Energy Capacity 125 Matter Stores 300 Matter Capacity 300 Sight Range 16 Terrain Scan Density 10 Evasion (%) 40 Recoil Reduction 2 Item Schematics ----------------- Sml. Storage Unit | -10/Materials | Hacked Robot Schematics ------------------ None Fabricated ------------ Nothing Alien Tech Used ----------------- None Achievements -------------- None Challenges ------------ None Game ------ Seed NeutronScatterPlating Manual? 0 Play Time 00:14:03 Cumulative 57.9 hours Start 2024.11.23 @ 19:51:18 End 2024.11.23 @ 20:02:56 Sessions 1 Manual Loads 0 Difficulty Rogue Special Mode None Game No. 81 Rogue 37 Adventurer 44 Explorer 0 Win Type - Total 0 Types 0/0/0/0/0/0/0/0/0 Lore% 18 Gallery% 44 Achievement% 32 Wizard Run 0 Options --------- Layout 1 ASCII 0 Keyboard 1 Movement Vi Keybinds 0 Fullscreen 1 Font 24/Terminus Map View 50x40 Zoom Use 0% Tactical HUD 1 Map Filters NONE Filters NONE Steam 1 RUN: 91c44d1a-5f28-4892-87f9-e8b86e3647b3